Cogmind - Beta 15 @@@ ROGUE MODE // 2025.06.12 @ 13:05:45 Player: Morgan Result: Destroyed by MC-QIV(R) with Subdweller Machine Gun Performance ------------- Evolutions (0) 0 Regions Visited (3) 600 Robots Destroyed (17) 85 Value Destroyed (196) 196 Prototype IDs (0) 0 Alien Tech Used (0) 0 Bonus (0) 0 TOTAL SCORE: 881 Bonus ------- None Cogmind --------- Core Integrity 0/250 Matter 264/300 Energy 100/100 System Corruption 10% Temperature Cool (0) Movement Core (100) Ox1 Location -10/Subcaves Parts ------- > --- POWER (1) -------- (None) > --- PROPULSION (2) --- (None) > --- UTILITY (2) ------ Small Storage Unit > --- WEAPON (2) ------- (None) > --- INVENTORY (8) ---- Light Ion Engine Structural Scanner EM Shotgun EM Shotgun EM Shotgun Light EM Pulse Cannon Light EM Pulse Cannon Peak State ------------ > --- POWER ------------ Subdweller Power Source > --- PROPULSION ------- Light Treads Light Treads > --- UTILITY ---------- Small Storage Unit Subdweller Optics > --- WEAPON ----------- Light EM Pulse Cannon Light EM Pulse Cannon > --- INVENTORY -------- Light Ion Engine Light Ion Engine Structural Scanner EM Shotgun EM Shotgun EM Shotgun Light EM Pulse Cannon Light EM Pulse Cannon [Rating: 12] Favorites ----------- Power Light Ion Engine Engine Light Ion Engine Propulsion Light Treads Treads Light Treads Utility Small Storage Unit Device Structural Scanner Storage Small Storage Unit Weapon Light EM Pulse Cannon Energy Gun EM Shotgun Energy Cannon Light EM Pulse Cannon Build | -11 -10 -10 -10 ------- Run | Yrd Mat Min Sub Slots Evolved . | . . . . Power . | . . . . Propulsion . | . . . . Utility . | . . . . Weapon . | . . . . Parts Attached 15 | 6 4 1 4 Power 3 | 1 . 1 1 Engine 3 | 1 . 1 1 Core . | . . . . Reactor . | . . . . Propulsion 2 | 2 . . . Treads 2 | 2 . . . Leg . | . . . . Wheel . | . . . . Hover . | . . . . Flight . | . . . . Utility 4 | 1 2 . 1 Device 3 | . 2 . 1 Storage 1 | 1 . . . Processor . | . . . . Hackware . | . . . . Protection . | . . . . Artifact . | . . . . Weapon 6 | 2 2 . 2 Energy Gun 3 | 2 1 . . Energy Cannon 3 | . 1 . 2 Ballistic Gun . | . . . . Ballistic Cannon . | . . . . Launcher . | . . . . Special Weapon . | . . . . Impact Weapon . | . . . . Slashing Weapon . | . . . . Piercing Weapon . | . . . . Special Melee Weapon . | . . . . Unidentified Prototypes . | . . . . Corrupted Parts 3 | . 1 . 2 System Corruption 10 | . 1 . 9 Parts Lost 7 | . . . 7 Power 1 | . . . 1 Propulsion 2 | . . . 2 Utility 1 | . . . 1 Weapon 3 | . . . 3 Highest Loss Streak 6 | . . . 6 To Critical Strikes . | . . . . Average Backups 6 | 2 5 7 7 Power 1 | . 1 1 1 Propulsion . | . . . . Utility . | . . . . Weapon 5 | 1 4 6 5 Tool/Special . | . . . . Unused Backups 5 | . 1 . 4 Power . | . . . . Propulsion . | . . . . Utility . | . . . . Weapon 5 | . 1 . 4 Tool/Special . | . . . . Average Slot Usage (%) 94 | . 95 100 87 Engine 13 | . 14 14 12 Treads 26 | . 28 28 23 Device 12 | . 9 14 12 Storage 14 | . 14 14 14 Energy Gun 10 | . 17 14 1 Energy Cannon 15 | . 10 14 22 Peak Build Rating 12 | 6 11 10 12 Average Rating 9 | 4 9 10 9 On Entrance 6 | . 6 10 10 Naked Turns . | . . . . Heaviest Build 20 | 12 16 16 20 Greatest Support 40 | 40 40 40 40 Greatest Overweight (x) 5 | . . . 5 Average Overweight (x) . | . . . . Largest Inventory Capacity 8 | 8 8 8 8 Average Capacity 7 | 7 8 8 8 Most Carried 8 | 5 8 8 8 Average Carried 6 | 2 6 7 7 Final Capacity 8 | 8 8 8 8 Final Carried 8 | 2 8 7 7 Class Distribution -------------------- 100% | Mutant Dominant Class ---------------- Mutant | -10/Materials Mutant | -10/Mines Mutant | -10/Subcaves Resources | -11 -10 -10 -10 ----------- Run | Yrd Mat Min Sub Matter Collected 345 | 226 64 35 20 Remotely . | . . . . Salvage Created 341 | . 164 127 50 Parts 38 | . 28 8 2 Haulers Intercepted . | . . . . Recyclers Shooed . | . . . . Parts Field Recycled . | . . . . Retrieved Matter . | . . . . Parts Self-Destructed . | . . . . Prevented . | . . . . Kills | -11 -10 -10 -10 ------- Run | Yrd Mat Min Sub Combat Hostiles Destroyed 12 | . 6 5 1 Guns 5 | . 1 4 . Cannons 4 | . 3 1 . AOE 2 | . 2 . . Classes Destroyed 7 | . 4 2 1 Worker 2 | . 1 1 . Builder 1 | . 1 . . Tunneler 1 | . . 1 . Watcher 2 | . 2 . . Swarmer 10 | . 6 4 . Subdweller 1 | . . . 1 Assembled 1 | . . 1 . Best Kill Streak 7 | . 7 3 1 Combat Bots Only 6 | . 6 3 1 Max Kills in Single Turn 2 | . 2 1 1 Gunslinging . | . . . . Exploded 2 | . 2 . . Melee . | . . . . Uniques/NPCs Destroyed . | . . . . Combat | -11 -10 -10 -10 -------- Run | Yrd Mat Min Sub Hostile Shots Fired 90 | . 34 24 32 Missed 24 | . 8 5 11 Hits 66 | . 26 19 21 Melee 1 | . . 1 . Projectile 65 | . 26 18 21 AOE 4 | . . . 4 Critical Strikes 2 | . . 1 1 Damage Taken 967 | . 233 166 568 Core 251 | . 23 63 165 Absorbed by Shields . | . . . . Core Remaining (%) 100 | 100 . . . Volleys Fired 33 | 1 12 13 7 Largest 2 | 2 2 2 2 Hottest 112 | 100 101 101 112 Shots Fired 45 | 2 16 19 8 Gun 18 | 2 7 9 . Cannon 27 | . 9 10 8 Launcher . | . . . . Special . | . . . . Kinetic . | . . . . Thermal 2 | 2 . . . Explosive . | . . . . Electromagnetic 43 | . 16 19 8 Robot Hit Streak 7 | 1 4 5 7 Robot Miss Streak 3 | 1 3 3 . Penetration Max . | . . . . Secondary Targets . | . . . . Shots Hit Robots 29 | 1 10 11 7 Core Hits 22 | . 13 9 . Critical Kills . | . . . . Critical Parts Destroyed . | . . . . Critical Strikes . | . . . . Melee Attacks . | . . . . Impact . | . . . . Slashing . | . . . . Piercing . | . . . . Sneak Attacks . | . . . . Combat Hostiles . | . . . . Follow-up Attacks . | . . . . Damage Inflicted 565 | 13 232 162 158 Guns 212 | 13 98 101 . Cannons 275 | . 56 61 158 Explosions 78 | . 78 . . Melee . | . . . . Ramming . | . . . . Kinetic . | . . . . Thermal 91 | 13 78 . . Explosive . | . . . . Electromagnetic 474 | . 154 162 158 Impact . | . . . . Slashing . | . . . . Piercing . | . . . . Highest Corruption 10 | . 1 1 10 Average Corruption 4 | . 1 1 8 Corruption Purged . | . . . . Corruption Blocked . | . . . . Effects 15 | . 1 4 10 Message Errors 3 | . . . 3 Matter Fused 5 | . . 1 4 Heat Flow Errors 1 | . . 1 . Energy Discharges 1 | . . 1 . Data Loss (minor) 2 | . . 1 1 Data Loss (major) 2 | . 1 . 1 Misdirections 1 | . . . 1 Overload Shots . | . . . . Overflow Damage . | . . . . Projectiles . | . . . . Explosions . | . . . . Melee . | . . . . Knockbacks . | . . . . Impact . | . . . . Kinetic . | . . . . Secondary . | . . . . Self-Inflicted Damage 36 | . 36 . . Shots 1 | . 1 . . Rammed . | . . . . Targets Rammed . | . . . . Kicked . | . . . . Crushed . | . . . . Highest Temperature 170 | 39 80 170 . Average Temperature 41 | 20 26 54 . Received Heat Transfer 42 | . . . 42 Siege Activations . | . . . . Martial Activations . | . . . . Shielding Activations . | . . . . Robots Disrupted . | . . . . Combat Hostiles . | . . . . Robots Corrupted 1 | . . . 1 Combat Hostiles 1 | . . . 1 Parts Fried 1 | . . . 1 Impact Corruptions . | . . . . Robots Melted . | . . . . Combat Hostiles . | . . . . Parts Melted . | . . . . Heat Transferred 137 | 37 100 . . Parts Sabotaged . | . . . . Parts Stolen . | . . . . Parts Stripped . | . . . . Power Chain Reactions 1 | . 1 . . Alert | -11 -10 -10 -10 ------- Run | Yrd Mat Min Sub Maximum Alert Level . | . . . . Low Security (%) 100 | 100 100 100 . Level 1 . | . . . . Level 2 . | . . . . Level 3 . | . . . . Level 4 . | . . . . Level 5 . | . . . . High Security . | . . . . Max Security . | . . . . Peak Influence 155 | . 155 60 . Initial 41 | . . 41 . Average 31 | . 54 18 . Influence Increases 317 | . 187 130 . Destroy 0b10 Robot/C 200 | . 120 80 . Destroy 0b10 Robot/NC 30 | . 20 10 . Destroy Leader 34 | . 24 10 . Successful Hack 5 | . 5 . . Disable Machine 15 | . 15 . . Destroy Structure 3 | . 3 . . Lose Combat Pursuer 30 | . . 30 . Influence Decreases 317 | . 80 187 50 Entered New Map 92 | . . 66 26 Time Decay 215 | . 80 121 14 Lost Part 10 | . . . 10 Squads Dispatched . | . . . . Investigation . | . . . . Extermination . | . . . . Reinforcement . | . . . . Assault . | . . . . Garrison . | . . . . Intercept . | . . . . Searches Triggered . | . . . . Construction Impeded . | . . . . Haulers Reinforced . | . . . . Active Scanning Responses . | . . . . Cargo Convoy Interrupts . | . . . . Stealth | -11 -10 -10 -10 --------- Run | Yrd Mat Min Sub Distress Signals . | . . . . Communications Jammed . | . . . . Distress Signals . | . . . . Times Spotted 25 | . 8 10 7 Peak Tracking Total 5 | . 5 4 5 Tactical Retreats 5 | . . 3 2 Traps | -11 -10 -10 -10 ------- Run | Yrd Mat Min Sub Traps Triggered . | . . . . Indirectly . | . . . . Trap Hack Attempts . | . . . . Triggered . | . . . . Disarmed . | . . . . Reprogrammed . | . . . . Reused . | . . . . Traps Extracted . | . . . . Installed . | . . . . Triggered . | . . . . Machines | -11 -10 -10 -10 ---------- Run | Yrd Mat Min Sub Machines Disabled 1 | . 1 . . Max in Single Turn 1 | . 1 . . Machines Repaired . | . . . . Machines Dismantled . | . . . . Machines Sabotaged . | . . . . Overloaded Fab Kills . | . . . . Hacking | -11 -10 -10 -10 --------- Run | Yrd Mat Min Sub Machines Accessed 1 | . 1 . . Terminals 1 | . 1 . . Fabricators . | . . . . Repair Stations . | . . . . Recycling Units . | . . . . Scanalyzers . | . . . . Garrison Access . | . . . . Total Hacks 1 | . 1 . . Successful 1 | . 1 . . Failed . | . . . . Catastrophic . | . . . . Database Lockouts . | . . . . Manual . | . . . . Terminals 1 | . 1 . . Fabricators . | . . . . Repair Stations . | . . . . Recycling Units . | . . . . Scanalyzers . | . . . . Garrison Access . | . . . . Terminal Hacks 1 | . 1 . . Transport Status 1 | . 1 . . Fabricator Hacks . | . . . . Repair Station Hacks . | . . . . Recycling Unit Hacks . | . . . . Scanalyzer . | . . . . Garrison Access Hacks . | . . . . Unauthorized Hacks . | . . . . Terminals . | . . . . Fabricators . | . . . . Repair Stations . | . . . . Recycling Units . | . . . . Scanalyzers . | . . . . Garrison Access . | . . . . Data Cores Recovered . | . . . . Used . | . . . . Hacking Detections . | . . . . Full Trace Events . | . . . . Feedback Events . | . . . . Feedback Blocked . | . . . . Robot Schematics Acquired . | . . . . Robots Built . | . . . . Authchips . | . . . . Time . | . . . . Total Robot Build Rating . | . . . . Part Schematics Acquired . | . . . . Parts Built . | . . . . Authchips . | . . . . Time . | . . . . Total Part Build Rating . | . . . . Parts Repaired . | . . . . Time . | . . . . Parts Recycled . | . . . . Recycled Matter . | . . . . Retrieved Matter . | . . . . Retrieved Components . | . . . . Parts Scanalyzed . | . . . . Part Schematics Acquired . | . . . . Parts Damaged . | . . . . Bothacking | -11 -10 -10 -10 ------------ Run | Yrd Mat Min Sub Used RIF Installer . | . . . . Robots Hacked . | . . . . Non-combat . | . . . . Combat . | . . . . Robot Hacks Applied . | . . . . Relay Couplers Released . | . . . . Fabnet Peak Effective % . | . . . . Robots Rewired . | . . . . Allies Hacked . | . . . . Hacks Repelled . | . . . . Allies | -11 -10 -10 -10 -------- Run | Yrd Mat Min Sub Total Allies . | . . . . Largest Group . | . . . . Highest-Rated Group . | . . . . Highest-Rated Ally . | . . . . Total Orders . | . . . . Ally Attacks . | . . . . Total Damage . | . . . . Kills . | . . . . Allies Corrupted . | . . . . Allies Melted . | . . . . Intel | -11 -10 -10 -10 ------- Run | Yrd Mat Min Sub Active Infowar (turns) 642 | . 35 325 282 Optics 205 | . . . 205 Structural 437 | . 35 325 77 Robot Analysis Total . | . . . . Derelict Logs Recovered . | . . . . Drone Launches . | . . . . Drone Recoveries . | . . . . Exploration | -11 -10 -10 -10 ------------- Run | Yrd Mat Min Sub Turns Passed 1004 | 76 283 325 320 Spaces Moved 560 | 44 150 176 190 Core 50 | 9 . . 41 Treads 510 | 35 150 176 149 Legs . | . . . . Wheels . | . . . . Hover . | . . . . Flight . | . . . . Fastest Speed 50 | 50 160 160 100 Average Speed 154 | 137 160 160 149 Slowest Speed 300 | 160 160 160 300 Overloaded Moves . | . . . . Propulsion Burnouts . | . . . . Robots Hopped . | . . . . Potential Cave-ins . | . . . . Cave-ins Triggered . | . . . . Exploration Rate (%) 23 | 4 23 49 16 Regions Visited 3 Branch Regions 2 Pre-discovered Areas . | . . . . Known Exits Taken . | . . . . Unknown Exits Taken 3 | 1 1 1 . Scrap Searched . | . . . . Spaces Dug . | . . . . Terrain Destroyed 3 | . 3 . . Melee . | . . . . Projectile . | . . . . AOE 3 | . 3 . . Terrain Rammed . | . . . . Walls Destroyed . | . . . . Machines Disabled . | . . . . Actions | -11 -10 -10 -10 --------- Run | Yrd Mat Min Sub Total 651 | 58 178 200 215 Wait 19 | . . 9 10 Move 557 | 43 149 175 190 Hop . | . . . . Pick Up 20 | 8 10 . 2 Fast Attach . | . . . . Attach 10 | 6 3 . 1 Detach . | . . . . Swap 7 | . 1 2 4 Drop 5 | . 3 1 1 Fire 33 | 1 12 13 7 Melee . | . . . . Ram . | . . . . Kick . | . . . . Crush . | . . . . Escape Stasis . | . . . . Rewire . | . . . . Trap . | . . . . Miscellaneous . | . . . . Route ------- -11/Scrapyard -10/Materials -10/Mines -10/Subcaves History --------- Turn | Location | Event 5 | -11/Scrapyard | Discovered new exit (range 13) 77 | -11/Scrapyard | Entered Materials 313 | -10/Materials | Build established: Mutant 336 | -10/Materials | Discovered new exit (range 15) 360 | -10/Materials | Entered Mines 444 | -10/Mines | Assembled infested the area 449 | -10/Mines | Assisted by a Guerilla fighting off Assembled 643 | -10/Mines | Discovered new exit (range 16) 685 | -10/Mines | Entered Subcaves 686 | -10/Subcaves | Approached by a straggling Scientist 763 | -10/Subcaves | System corruption reached 10% 958 | -10/Subcaves | Ambushed by Subdweller buried in earth 959 | -10/Subcaves | Core integrity fell below 50% 978 | -10/Subcaves | Ambushed by Subdwellers from Twisted Machinery 980 | -10/Subcaves | Core integrity fell below 20% 998 | -10/Subcaves | Lost 6 parts (1p2n1u2w) 1005 | -10/Subcaves | Destroyed by MC-QIV(R) with Subdweller Machine Gun Last Messages --------------- here" System corrupted: Substantial component data lost. Sub. Power Source shoots sparks and powers down. Dropped Broken Sub. Power Source. JU-B8Q(c) destroyed. Subatomizers dissect the Broken Sub. Power Source. System corrupted: Component data lost. Lgt. Treads destroyed. Lgt. EM Pulse Cannon destroyed. N5-B9W(R): "ARGHSUB!" Subatomizers dissect the Broken Sub. Power Source, destroying it. Lgt. EM Pulse Cannon destroyed. Lgt. Ion Engine destroyed. Sub. Optics destroyed. System corrupted: Matter fused (-9). S8-XI0(R) emerges from the Twisted Machinery. %9RDXISVUO0VK6YQRVPTTH&PSHR3